bitfinex/quotes_BTCUSD_20250208
["timestamp","ask_amount","ask_price","bid_price","bid_amount"]
[1738985376076,0.4596894,96643.0,96642.0,0.2017947]
[1738985376287,0.4596894,96643.0,96642.0,0.2047947]
[1738985376672,0.4576894,96643.0,96642.0,0.2047947]
[1738985376868,0.4596894,96643.0,96642.0,0.2017947]
[1738985377068,0.4606894,96643.0,96641.0,0.0001068]
[1738985377274,0.4606894,96643.0,96641.0,0.1553198]
[1738985377499,0.0798,96642.0,96641.0,0.0001068]
[1738985377673,0.235012,96642.0,96641.0,0.0001068]
[1738985378215,0.2474536,96642.0,96641.0,0.0001068]
[1738985378750,0.0922416,96642.0,96641.0,0.0001068]
[1738985379168,0.0932416,96642.0,96641.0,0.0001068]
[1738985379819,0.0962416,96642.0,96641.0,0.0001068]
[1738985380106,0.0972416,96642.0,96641.0,0.0001068]
[1738985380330,0.0982416,96642.0,96641.0,0.0001068]
[1738985380871,0.41766512,96642.0,96641.0,0.0001068]
[1738985381514,0.41366512,96642.0,96641.0,0.0001068]
[1738985381878,0.41666512,96642.0,96641.0,0.0001068]
[1738985382079,0.41466512,96642.0,96641.0,0.0001068]
[1738985382515,0.41566512,96642.0,96641.0,0.0011068]
[1738985382709,0.41266512,96642.0,96641.0,0.0011068]
[1738985382928,0.41266512,96642.0,96641.0,0.0001068]
[1738985383137,0.41566512,96642.0,96641.0,0.0001068]
[1738985383335,0.41666512,96642.0,96641.0,0.0001068]
[1738985383698,0.41766512,96642.0,96641.0,0.0001068]
[1738985384098,0.57287712,96642.0,96641.0,0.0001068]
[1738985384803,0.56887712,96642.0,96641.0,0.0001068]
[1738985385118,0.56987712,96642.0,96641.0,0.0001068]
[1738985385538,0.56987712,96642.0,96641.0,0.0011068]
[1738985385738,0.57087712,96642.0,96641.0,0.0011068]
[1738985385988,0.56787712,96642.0,96641.0,0.0001068]
[1738985386193,0.57087712,96642.0,96641.0,0.0001068]
[1738985386400,0.57287712,96642.0,96641.0,0.0001068]
[1738985386553,0.57187712,96642.0,96641.0,0.0001068]
[1738985386757,0.57087712,96642.0,96641.0,0.0001068]
[1738985386998,0.57087712,96642.0,96641.0,0.0011068]
[1738985388013,0.56687712,96642.0,96641.0,0.0011068]
[1738985388210,0.56687712,96642.0,96641.0,0.0001068]
[1738985388473,0.56987712,96642.0,96641.0,0.0001068]
[1738985388642,0.57187712,96642.0,96641.0,0.0001068]
[1738985390024,0.56987712,96642.0,96641.0,0.0001068]
[1738985391030,0.56687712,96642.0,96641.0,0.0001068]
[1738985391516,0.57187712,96642.0,96641.0,0.0001068]
[1738985391876,0.56987712,96642.0,96641.0,0.0001068]
[1738985392200,0.57187712,96642.0,96641.0,0.0001068]
[1738985392940,0.5721014,96642.0,96641.0,0.0001068]
[1738985401117,0.4168894,96642.0,96641.0,0.0001068]
[1738985401737,0.5721014,96642.0,96641.0,0.0001068]
[1738985402522,0.3370894,96642.0,96641.0,0.0001068]
[1738985402928,0.3370894,96642.0,96641.0,0.03863548]
[1738985403900,0.3370894,96642.0,96641.0,0.0001068]
[1738985404614,0.4923014,96642.0,96641.0,0.0001068]
[1738985405174,0.3370894,96642.0,96641.0,0.0001068]
[1738985407812,0.4923014,96642.0,96641.0,0.0001068]
[1738985411441,0.3350894,96642.0,96641.0,0.0001068]
[1738985411654,0.3350894,96642.0,96641.0,0.02081398]
[1738985412429,0.4903014,96642.0,96641.0,0.02081398]
[1738985412616,0.4903014,96642.0,96641.0,0.0001068]
[1738985412768,0.4923014,96642.0,96641.0,0.0001068]
[1738985413711,0.4893014,96642.0,96641.0,0.0001068]
[1738985414109,0.4923014,96642.0,96641.0,0.0001068]
[1738985416294,0.4923014,96642.0,96641.0,0.03863628]
[1738985416495,0.4923014,96642.0,96641.0,0.0001068]
[1738985420501,0.3370894,96642.0,96641.0,0.0001068]
[1738985421696,0.33681624,96642.0,96641.0,0.0001068]
[1738985423158,0.49202824,96642.0,96641.0,0.0001068]
[1738985426604,0.33681624,96642.0,96641.0,0.0001068]
[1738985427008,0.33681624,96642.0,96641.0,0.03633548]
[1738985427235,0.33481624,96642.0,96641.0,0.03633548]
[1738985427563,0.33681624,96642.0,96641.0,0.03633548]
[1738985427912,0.33381624,96642.0,96641.0,0.03633548]
[1738985428167,0.33381624,96642.0,96641.0,0.21454848]
[1738985428363,0.33681624,96642.0,96641.0,0.05933548]
[1738985430449,0.33681624,96642.0,96641.0,0.0001068]
[1738985430644,0.49202824,96642.0,96641.0,0.0001068]
[1738985431496,0.33681624,96642.0,96641.0,0.0001068]
[1738985431692,0.33681624,96642.0,96641.0,0.1553198]
[1738985432026,0.33681624,96642.0,96641.0,0.0001068]
[1738985432141,0.33681624,96642.0,96641.0,0.05703108]
[1738985433576,0.33481624,96642.0,96641.0,0.05703108]
[1738985434013,0.33481624,96642.0,96641.0,0.07196691]
[1738985434212,0.33681624,96642.0,96641.0,0.07196691]
[1738985434880,0.33381624,96642.0,96641.0,0.07196691]
[1738985435049,0.33681624,96642.0,96641.0,0.07196691]
[1738985436454,0.33181624,96642.0,96641.0,0.07196691]
[1738985436645,0.33481624,96642.0,96641.0,0.07196691]
[1738985436797,0.33581624,96642.0,96641.0,0.07196691]
[1738985437833,0.33581624,96642.0,96641.0,0.01504263]
[1738985438446,0.48802824,96642.0,96641.0,0.01504263]
[1738985438865,0.49002824,96642.0,96641.0,0.01504263]
[1738985439237,0.49002824,96642.0,96641.0,0.0001068]
[1738985445646,0.48902824,96642.0,96641.0,0.0001068]
[1738985445840,0.49002824,96642.0,96641.0,0.01563968]
[1738985446341,0.48902824,96642.0,96641.0,0.01563968]
[1738985446690,0.48802824,96642.0,96641.0,0.01563968]
[1738985446892,1.00540824,96642.0,96641.0,0.01563968]
[1738985447297,0.85019624,96642.0,96641.0,0.01563968]
[1738985448066,0.85219624,96642.0,96641.0,0.01563968]
[1738985448588,0.85419624,96642.0,96641.0,0.0001068]
[1738985450364,1.00940824,96642.0,96641.0,0.0001068]
[1738985452124,1.00840824,96642.0,96641.0,0.0001068]
[1738985452334,1.00940824,96642.0,96641.0,0.0001068]
[1738985452890,1.00840824,96642.0,96641.0,0.0001068]
[1738985453910,1.00540824,96642.0,96641.0,0.0001068]
[1738985454210,1.00840824,96642.0,96641.0,0.0001068]
[1738985455218,1.00740824,96642.0,96641.0,0.0001068]
[1738985455644,1.00940824,96642.0,96641.0,0.0001068]
[1738985456957,1.01888649,96642.0,96641.0,0.0001068]
[1738985461355,1.16888649,96642.0,96641.0,0.0001068]
[1738985461713,1.27139014,96642.0,96641.0,0.0001068]
[1738985462308,1.26939014,96642.0,96641.0,0.0001068]
[1738985462722,1.45639379,96642.0,96641.0,0.0011068]
[1738985462922,1.54356251,96642.0,96641.0,0.0011068]
[1738985463133,1.53556251,96642.0,96641.0,0.0001068]
[1738985463338,1.53556251,96642.0,96641.0,0.0011068]
[1738985463621,1.54056251,96642.0,96641.0,0.0011068]
[1738985463947,1.55756251,96642.0,96641.0,0.0011068]
[1738985464801,1.54956251,96642.0,96641.0,0.0001068]
[1738985465106,1.56756251,96642.0,96641.0,0.0001068]
[1738985465245,1.56056251,96642.0,96641.0,0.0001068]
[1738985465876,1.56956251,96642.0,96641.0,0.0001068]
[1738985466278,1.60406454,96642.0,96641.0,0.0001068]
[1738985469368,1.61406454,96642.0,96641.0,0.0001068]
[1738985472815,1.57956251,96642.0,96641.0,0.0001068]
[1738985473037,2.98326251,96642.0,96641.0,0.0001068]
[1738985476064,3.09226251,96642.0,96641.0,0.0001068]
[1738985476801,2.86847886,96642.0,96641.0,0.0001068]
[1738985477019,2.69709014,96642.0,96641.0,0.0001068]
[1738985477336,2.44458649,96642.0,96641.0,0.0001068]
[1738985477736,2.59458649,96642.0,96641.0,0.0001068]
[1738985478159,2.58558649,96642.0,96641.0,0.0001068]
[1738985478923,1.19088649,96642.0,96641.0,0.0011068]
[1738985479327,1.17288649,96642.0,96641.0,0.0011068]
[1738985479567,1.18188649,96642.0,96641.0,0.0011068]
[1738985483796,1.17240824,96642.0,96641.0,0.0011068]
[1738985484563,0.86719624,96642.0,96641.0,0.25561045]
[1738985484763,0.86719624,96642.0,96641.0,0.3380842]
[1738985486076,0.85819624,96642.0,96641.0,0.36845865]
[1738985486453,0.84919624,96642.0,96641.0,0.38232847]
[1738985486655,0.86719624,96642.0,96641.0,0.38332847]
[1738985487061,0.86719624,96642.0,96641.0,0.38232847]
[1738985487292,0.85819624,96642.0,96641.0,0.38232847]
[1738985487463,0.85019624,96642.0,96641.0,0.38732847]
[1738985487622,0.53077272,96642.0,96641.0,0.38732847]
[1738985487938,0.53077272,96642.0,96641.0,0.38932847]
[1738985488121,0.53077272,96642.0,96641.0,0.36860887]
[1738985492416,0.53077272,96642.0,96641.0,0.39232779]
[1738985495022,0.53077272,96642.0,96641.0,0.54754079]
[1738985495446,0.53077272,96642.0,96641.0,0.52382187]
[1738985499331,0.53077272,96642.0,96641.0,0.54751939]
[1738985502341,0.53077272,96642.0,96641.0,0.52382187]
[1738985507606,0.53077272,96642.0,96641.0,0.50895205]
[1738985510297,0.53077272,96642.0,96641.0,0.52380407]
[1738985512631,0.53077272,96642.0,96641.0,0.52353091]
[1738985515157,0.53077272,96642.0,96641.0,0.55570396]
[1738985516598,0.53077272,96642.0,96641.0,0.52353091]
[1738985516824,0.53077272,96642.0,96641.0,0.50867889]
[1738985517253,0.53077272,96642.0,96641.0,0.5408938]
[1738985522144,0.53077272,96642.0,96641.0,0.55580627]
[1738985522313,0.53077272,96642.0,96641.0,0.55591307]
[1738985523147,0.53077272,96642.0,96641.0,0.70591307]
[1738985524204,0.52977272,96642.0,96641.0,0.70091307]
[1738985524623,0.53077272,96642.0,96641.0,0.70591307]
[1738985524849,0.53077272,96642.0,96641.0,0.72976659]
[1738985525029,0.53177272,96642.0,96641.0,0.73576659]
[1738985525233,0.53077272,96642.0,96641.0,0.72876659]
[1738985525409,0.53177272,96642.0,96641.0,0.73576659]
[1738985527560,0.50644324,96642.0,96641.0,0.74576659]
[1738985527761,0.50644324,96642.0,96641.0,0.72191307]
[1738985528365,0.42844395,96642.0,96641.0,0.71491307]
[1738985528574,0.31973585,96642.0,96641.0,0.71491307]
[1738985528772,0.31973585,96642.0,96641.0,0.71791307]
[1738985528977,0.23712896,96642.0,96641.0,0.72791307]
[1738985529209,0.2228528,96642.0,96641.0,0.72791307]
[1738985529557,0.07735058,96642.0,96641.0,0.72791307]
[1738985529765,0.07835058,96642.0,96641.0,0.73391307]
[1738985530023,0.04656676,96642.0,96641.0,0.73391307]
[1738985530411,0.002,96642.0,96641.0,0.73391307]
[1738985530835,0.002,96642.0,96641.0,0.75770545]
[1738985532079,0.00022428,96663.0,96662.0,0.155179]
[1738985532243,0.00022428,96663.0,96662.0,0.40508265]
[1738985533162,0.00022428,96663.0,96662.0,0.40608265]
[1738985533370,0.00026952,96663.0,96662.0,0.40608265]
[1738985533797,0.00026952,96663.0,96662.0,0.4447875]
[1738985533980,0.00026952,96663.0,96662.0,0.48301165]
[1738985534298,0.00026952,96663.0,96662.0,0.48701165]
[1738985534519,0.00026952,96663.0,96662.0,0.40961165]
[1738985534718,0.00026952,96663.0,96662.0,0.36261165]
[1738985535685,0.00026952,96663.0,96662.0,0.38367451]
[1738985535848,0.00026952,96663.0,96662.0,0.36261165]
[1738985536867,0.00026952,96663.0,96662.0,0.37254865]
[1738985537994,0.00026952,96663.0,96662.0,0.36754865]
[1738985539147,0.00026952,96663.0,96662.0,0.38813553]
[1738985539563,0.00026952,96663.0,96662.0,0.39013553]
[1738985540061,0.00026952,96663.0,96662.0,0.39213553]
[1738985540350,0.00026952,96663.0,96662.0,0.39013553]
[1738985540714,0.00026952,96663.0,96662.0,0.39413553]
[1738985542458,0.00026952,96663.0,96662.0,0.39213553]
[1738985542660,0.00026952,96663.0,96662.0,0.38813553]
[1738985542863,0.00026952,96663.0,96662.0,0.39413553]
[1738985543375,0.00026952,96663.0,96662.0,0.39213553]
[1738985543775,0.00026952,96663.0,96662.0,0.39613553]
[1738985549198,0.00026952,96663.0,96662.0,0.39213553]
[1738985549398,0.00026952,96663.0,96662.0,0.39413553]
[1738985549976,0.00026952,96663.0,96662.0,0.39013553]
[1738985550272,0.00026952,96663.0,96662.0,0.39413553]
[1738985552384,0.00026952,96663.0,96662.0,0.42631721]
[1738985554420,0.00026952,96663.0,96662.0,0.33456918]
[1738985554647,0.00026952,96663.0,96662.0,0.02091247]
[1738985555039,0.00867016,96663.0,96662.0,0.02091247]
[1738985555583,0.00867016,96663.0,96662.0,0.01891247]
[1738985556008,0.32913162,96663.0,96662.0,0.01891247]
[1738985556213,0.32809368,96663.0,96662.0,0.01491247]
[1738985556552,0.32809368,96663.0,96662.0,0.03192222]
[1738985557193,0.32809368,96663.0,96662.0,0.01700975]
[1738985557396,0.32809368,96663.0,96662.0,0.02200975]
[1738985557949,0.32809368,96663.0,96662.0,0.01700975]
[1738985558124,0.32809368,96663.0,96662.0,0.01900975]
[1738985558723,0.32809368,96663.0,96662.0,0.002]
[1738985567517,0.32803689,96663.0,96662.0,0.002]
[1738985568830,0.32803689,96663.0,96662.0,0.00222407]
[1738985573641,0.84529689,96663.0,96662.0,0.00222407]
[1738985576640,0.84268615,96663.0,96662.0,0.00222407]
[1738985576833,0.84505662,96663.0,96662.0,0.03966776]
[1738985581118,0.84516332,96663.0,96662.0,0.03966776]
[1738985581475,0.84516332,96663.0,96662.0,0.00222407]
[1738985591690,0.84516332,96663.0,96662.0,0.28290672]
[1738985592096,0.83679022,96663.0,96662.0,0.32830672]
[1738985592235,0.83679022,96663.0,96662.0,0.36059892]
[1738985592439,0.84478882,96663.0,96662.0,0.36059892]
[1738985592957,0.84478882,96663.0,96662.0,0.46310257]
[1738985597089,0.84478882,96663.0,96662.0,0.43081037]
[1738985601681,0.84478882,96663.0,96662.0,0.46305442]
[1738985603868,0.84478882,96663.0,96662.0,0.58081037]
[1738985603869,0.5253653,96663.0,96662.0,0.58081037]
[1738985603998,0.5253653,96663.0,96662.0,0.69544831]
[1738985604670,0.5253653,96663.0,96662.0,0.69344831]
[1738985604886,0.5253653,96663.0,96662.0,0.69944831]
[1738985605099,0.5253653,96663.0,96662.0,0.70244831]
[1738985606003,0.5253653,96663.0,96662.0,0.69944831]
[1738985606237,0.5253653,96663.0,96662.0,0.69644831]
[1738985606447,0.5253653,96663.0,96662.0,0.70244831]
[1738985617305,0.4839853,96663.0,96662.0,0.70244831]
[1738985617418,0.3805353,96663.0,96662.0,0.71016831]
[1738985617627,0.3805353,96663.0,96662.0,0.71416831]
[1738985618223,0.31942352,96698.0,96662.0,0.71416831]
[1738985618224,0.31942352,96698.0,96662.0,0.71116831]
[1738985618483,0.31987773,96698.0,96697.0,0.178123]
[1738985618730,0.31987773,96698.0,96697.0,0.28062665]
[1738985618731,0.00045421,96698.0,96697.0,0.28062665]
[1738985620324,0.00045421,96698.0,96697.0,0.28162665]
[1738985622292,0.00145421,96698.0,96697.0,0.28162665]
[1738985622405,0.00145421,96698.0,96697.0,0.3841303]
[1738985622996,0.00145421,96698.0,96697.0,0.3831303]
[1738985623129,0.00145421,96698.0,96697.0,0.39326834]
[1738985623329,0.00145421,96698.0,96697.0,0.39426834]
[1738985624768,0.00145421,96698.0,96697.0,0.37126834]
[1738985626125,0.00045421,96698.0,96697.0,0.39326834]
[1738985626565,0.00145421,96698.0,96697.0,0.39326834]
[1738985628507,0.00156101,96698.0,96697.0,0.39326834]
[1738985630579,0.32098453,96698.0,96697.0,0.39326834]
[1738985630785,0.32781633,96698.0,96697.0,0.39326834]
[1738985637910,0.32770967,96698.0,96697.0,0.39326834]
[1738985639195,0.32770967,96698.0,96697.0,0.28062665]
[1738985639393,0.40500967,96698.0,96697.0,0.28062665]
[1738985639651,0.40500967,96698.0,96697.0,0.10250365]
[1738985639915,0.40500967,96698.0,96694.0,0.155127]
[1738985640607,0.00103794,96697.0,96694.0,0.155127]
[1738985641038,0.00787166,96697.0,96694.0,0.002]
[1738985641243,0.00787166,96697.0,96694.0,0.157127]
[1738985641898,0.00787166,96697.0,96694.0,0.002]
[1738985642246,0.00787166,96697.0,96694.0,0.0228852]
[1738985642452,0.31942352,96696.0,96694.0,0.0208852]
[1738985642801,0.32625628,96696.0,96694.0,0.0228852]
[1738985642974,0.32625628,96696.0,96695.0,0.155126]
[1738985644586,0.32625628,96696.0,96694.0,0.0208852]
[1738985644759,0.32625628,96696.0,96695.0,0.03828642]
[1738985644964,0.32925628,96696.0,96695.0,0.03828642]
[1738985645541,0.33125628,96696.0,96693.0,0.155129]
[1738985645740,0.32825628,96696.0,96693.0,0.155129]
[1738985646380,0.32825628,96696.0,96694.0,0.155127]
[1738985646583,0.33025628,96696.0,96694.0,0.155127]
[1738985646759,0.33025628,96696.0,96695.0,0.0361969]
[1738985647786,0.32625628,96696.0,96695.0,0.0361969]
[1738985648105,0.32825628,96696.0,96695.0,0.0361969]
[1738985648613,0.33025628,96696.0,96695.0,0.0361969]
[1738985648815,0.84734628,96696.0,96695.0,0.0361969]
[1738985650558,0.155129,96694.0,96687.0,0.155139]
[1738985650700,0.15616894,96693.0,96687.0,0.155139]
[1738985650898,0.68007587,96693.0,96687.0,0.155139]
[1738985652470,0.68007587,96693.0,96687.0,0.15536307]
[1738985652834,0.52594487,96693.0,96687.0,0.00022407]
[1738985653059,0.52594487,96693.0,96688.0,0.155138]
[1738985653377,0.52594487,96693.0,96689.0,0.03622181]
[1738985653582,0.52594487,96693.0,96687.0,0.00022407]
[1738985653583,0.155138,96688.0,96687.0,0.00022407]
[1738985653718,0.74836594,96688.0,96687.0,0.00022407]
[1738985654111,0.7541078,96688.0,96687.0,0.00022407]
[1738985655679,0.7551078,96688.0,96687.0,0.00022407]
[1738985657258,1.07453132,96688.0,96687.0,0.00022407]
[1738985657915,0.99943132,96688.0,96687.0,0.01576118]
[1738985659831,0.84429332,96688.0,96687.0,0.17090018]
[1738985661264,0.84429332,96688.0,96687.0,0.19390018]
[1738985662945,0.84429332,96688.0,96687.0,0.29640383]
[1738985663200,0.84429332,96688.0,96687.0,0.37920383]
[1738985663738,0.84429332,96688.0,96687.0,0.42790383]
[1738985663961,0.84429332,96688.0,96687.0,0.46011761]
[1738985664169,0.84329332,96688.0,96687.0,0.42790383]
[1738985664391,0.84329332,96688.0,96687.0,0.42990383]
[1738985664564,0.84329332,96688.0,96687.0,0.46211619]
[1738985664764,0.84329332,96688.0,96687.0,0.46011619]
[1738985665134,0.84329332,96688.0,96687.0,0.46311619]
[1738985665314,0.84329332,96688.0,96687.0,0.43190383]
[1738985665715,0.84329332,96688.0,96687.0,0.43090383]
[1738985665888,0.84329332,96688.0,96687.0,0.4631213]
[1738985666090,0.84329332,96688.0,96687.0,0.4681213]
[1738985678054,0.84329332,96688.0,96687.0,0.43590383]
[1738985680325,0.84329332,96688.0,96687.0,0.30440383]
[1738985681230,0.84329332,96688.0,96687.0,0.29940383]
[1738985681459,0.84329332,96688.0,96687.0,0.29640383]
[1738985681658,0.84329332,96688.0,96687.0,0.29940383]
[1738985682378,0.84329332,96688.0,96687.0,0.30440383]
[1738985682745,0.84329332,96688.0,96687.0,0.29940383]
[1738985684131,0.84329332,96688.0,96687.0,0.30140383]
[1738985684326,0.84329332,96688.0,96687.0,0.29840383]
[1738985684590,0.84329332,96688.0,96687.0,0.29640383]
[1738985684795,0.84329332,96688.0,96687.0,0.29740383]
[1738985685004,0.84329332,96688.0,96687.0,0.30040383]
[1738985685257,0.84329332,96688.0,96687.0,0.30140383]
[1738985686043,0.84329332,96688.0,96687.0,0.29640383]
[1738985686244,0.84329332,96688.0,96687.0,0.29940383]
[1738985686661,0.84329332,96688.0,96687.0,0.38070383]
[1738985687224,0.84329332,96688.0,96687.0,0.29940383]
[1738985687423,0.84329332,96688.0,96687.0,0.30140383]
[1738985687853,0.84329332,96688.0,96687.0,0.29740383]
[1738985688284,0.84329332,96688.0,96687.0,0.30240383]
[1738985688469,0.84329332,96688.0,96687.0,0.30540383]
[1738985688677,0.84329332,96688.0,96687.0,0.29640383]
[1738985688881,0.84329332,96688.0,96687.0,0.29740383]
[1738985689085,0.84329332,96688.0,96687.0,0.30040383]
[1738985689644,0.84329332,96688.0,96687.0,0.30340383]
[1738985690479,0.84329332,96688.0,96687.0,0.30040383]
[1738985691012,0.84329332,96688.0,96687.0,0.30440383]
[1738985691296,0.84329332,96688.0,96687.0,0.30040383]
[1738985691498,0.84329332,96688.0,96687.0,0.29640383]
[1738985691706,0.84329332,96688.0,96687.0,0.30140383]
[1738985692049,0.84329332,96688.0,96687.0,0.30040383]
[1738985692275,0.84329332,96688.0,96687.0,0.29840383]
[1738985692688,0.84329332,96688.0,96687.0,0.29640383]
[1738985693475,0.84329332,96688.0,96687.0,0.30040383]
[1738985694373,0.84329332,96688.0,96687.0,0.33268342]
[1738985694572,0.84329332,96688.0,96687.0,0.33368342]
[1738985694960,0.84329332,96688.0,96687.0,0.33568342]
[1738985695176,0.84329332,96688.0,96687.0,0.33168342]
[1738985695388,0.84329332,96688.0,96687.0,0.33068342]
[1738985695583,0.84329332,96688.0,96687.0,0.33268342]
[1738985696616,0.84329332,96688.0,96687.0,0.33668342]
[1738985696957,0.84329332,96688.0,96687.0,0.33268342]
[1738985697156,0.84329332,96688.0,96687.0,0.32868342]
[1738985697408,0.84329332,96688.0,96687.0,0.33068342]
[1738985697606,0.84329332,96688.0,96687.0,0.33468342]
[1738985698592,0.84329332,96688.0,96687.0,0.33268342]
[1738985698789,0.84329332,96688.0,96687.0,0.33468342]
[1738985699817,0.84329332,96688.0,96687.0,0.33068342]
[1738985700262,0.84329332,96688.0,96687.0,0.33468342]
[1738985700628,0.84329332,96688.0,96687.0,0.33068342]
[1738985700813,0.84329332,96688.0,96687.0,0.32868342]
[1738985701012,0.84329332,96688.0,96687.0,0.33168342]
[1738985701372,0.84329332,96688.0,96687.0,0.33368342]
[1738985701807,0.84329332,96688.0,96687.0,0.32868342]
[1738985702012,0.84329332,96688.0,96687.0,0.33068342]
[1738985702790,0.84329332,96688.0,96687.0,0.32868342]
[1738985702997,0.84329332,96688.0,96687.0,0.33168342]
[1738985703538,0.84329332,96688.0,96687.0,0.32868342]
[1738985703948,0.84329332,96688.0,96687.0,0.33168342]
[1738985704336,0.84329332,96688.0,96687.0,0.33368342]
[1738985706705,0.84329332,96688.0,96687.0,0.33068342]
[1738985707065,0.84329332,96688.0,96687.0,0.33368342]
[1738985707310,0.84329332,96688.0,96687.0,0.33168342]
[1738985707522,0.84329332,96688.0,96687.0,0.33368342]
[1738985710583,0.84329332,96688.0,96687.0,0.33068342]
[1738985710828,0.84329332,96688.0,96687.0,0.32868342]
[1738985711033,0.84329332,96688.0,96687.0,0.33168342]
[1738985711215,0.84329332,96688.0,96687.0,0.33368342]
[1738985714253,0.84329332,96688.0,96687.0,0.33068342]
[1738985714405,0.84329332,96688.0,96687.0,0.33168342]
[1738985714847,0.84329332,96688.0,96687.0,0.33368342]
[1738985717165,0.84329332,96688.0,96687.0,0.33068342]
[1738985717552,0.84329332,96688.0,96687.0,0.33168342]
[1738985717859,0.84329332,96688.0,96687.0,0.33368342]
[1738985719201,0.84329332,96688.0,96687.0,0.61108342]
[1738985719778,0.84329332,96688.0,96687.0,0.60808342]
[1738985720184,0.84329332,96688.0,96687.0,0.61108342]
[1738985720591,0.84329332,96688.0,96687.0,0.60908342]
[1738985720793,0.84329332,96688.0,96687.0,0.60608342]
[1738985721002,0.5031848,96688.0,96687.0,0.61808342]
[1738985721206,0.4824998,96688.0,96687.0,0.61808342]
[1738985721382,0.06403456,96688.0,96687.0,0.61254631]
[1738985721729,0.31942352,96720.0,96719.0,0.155088]
[1738985721878,0.31952691,96720.0,96719.0,0.28059165]
[1738985722718,0.31952691,96720.0,96719.0,0.2954927]
[1738985722914,0.31952691,96720.0,96719.0,0.2984927]
[1738985724353,0.31952691,96720.0,96719.0,0.2994927]
[1738985725202,0.31952691,96720.0,96719.0,0.2954927]
[1738985725405,0.31952691,96720.0,96719.0,0.2994927]
[1738985726189,0.31952691,96720.0,96719.0,0.28459165]
[1738985728390,0.31952691,96720.0,96719.0,0.29945798]
[1738985729232,0.31952691,96720.0,96719.0,0.29645798]
[1738985729640,0.31952691,96720.0,96719.0,0.29945798]
[1738985730102,0.31952691,96720.0,96719.0,0.29545798]
[1738985730325,0.31952691,96720.0,96719.0,0.29645798]
[1738985730496,0.31952691,96720.0,96719.0,0.29545798]
[1738985730932,0.31952691,96720.0,96719.0,0.29645798]
[1738985731342,0.31952691,96720.0,96719.0,0.29945798]
[1738985732101,0.00010339,96720.0,96719.0,0.37885798]
[1738985732831,0.00010339,96720.0,96719.0,0.41101289]
[1738985733148,0.00010339,96720.0,96719.0,0.37485798]
[1738985733346,0.00110339,96720.0,96719.0,0.39185798]
[1738985733757,0.29619975,96736.0,96735.0,0.155062]
[1738985733955,0.31164311,96736.0,96735.0,0.28056565]
[1738985735181,0.31164311,96736.0,96735.0,0.28256565]
[1738985735854,0.31164311,96736.0,96735.0,0.28556565]
[1738985736708,0.31164311,96736.0,96735.0,0.28256565]
[1738985737121,0.31164311,96736.0,96735.0,0.28056565]
[1738985737950,0.31164311,96736.0,96735.0,0.28256565]
[1738985738537,0.31164311,96736.0,96735.0,0.28556565]
[1738985739032,0.31164311,96736.0,96735.0,0.28056565]
[1738985739433,0.31164311,96736.0,96735.0,0.28256565]
[1738985740162,0.31164311,96736.0,96735.0,0.28056565]
[1738985740484,0.31164311,96736.0,96735.0,0.001]
[1738985741281,0.51360411,96736.0,96735.0,0.001]
[1738985741642,0.51460411,96736.0,96735.0,0.001]
[1738985741901,0.15507,96731.0,96725.0,0.023]
[1738985742098,0.15507,96731.0,96716.0,0.01005745]
[1738985742099,0.00103794,96730.0,96719.0,0.023]
[1738985742266,0.01651696,96730.0,96725.0,0.155078]
[1738985742864,0.01547902,96730.0,96726.0,0.155077]
[1738985743169,0.155069,96732.0,96726.0,0.155077]
[1738985743380,0.31167963,96731.0,96726.0,0.155077]
[1738985744567,0.0769,96729.0,96700.0,0.0794]
[1738985744768,0.155077,96727.0,96720.0,0.155086]
[1738985744996,0.01547558,96726.0,96721.0,0.155085]
[1738985746007,0.01547558,96726.0,96713.0,0.023]
[1738985746209,0.00103794,96725.0,96720.0,0.155085]
[1738985746414,0.01547386,96724.0,96720.0,0.155085]
[1738985746613,0.01547386,96724.0,96715.0,0.023]
[1738985746842,0.155077,96727.0,96721.0,0.155084]
[1738985746843,0.00103794,96726.0,96721.0,0.155084]
[1738985747072,0.01547301,96723.0,96721.0,0.155084]
[1738985747318,0.158077,96727.0,96721.0,0.155084]
[1738985747490,0.01547215,96722.0,96721.0,0.155084]
[1738985747696,0.002,96724.0,96721.0,0.155084]
[1738985747853,0.01547215,96722.0,96721.0,0.155084]
[1738985748056,0.002,96724.0,96721.0,0.155084]
[1738985748265,0.001,96723.0,96721.0,0.155084]
[1738985748466,0.01547301,96723.0,96721.0,0.155084]
[1738985748815,0.15611194,96728.0,96722.0,0.155083]
[1738985748947,0.003,96724.0,96722.0,0.155083]
[1738985749150,0.01547301,96723.0,96722.0,0.155083]
[1738985749347,0.31167276,96723.0,96722.0,0.155083]
[1738985749802,0.31167276,96723.0,96721.0,0.001]
[1738985750014,0.31167276,96723.0,96721.0,0.156083]
[1738985750196,0.31167276,96723.0,96722.0,0.155083]
[1738985750578,0.31267276,96723.0,96722.0,0.155083]
[1738985751204,0.31467276,96723.0,96722.0,0.155083]
[1738985751601,0.31367276,96723.0,96722.0,0.155083]
[1738985751815,0.31567276,96723.0,96722.0,0.155083]
[1738985752144,0.31567276,96723.0,96722.0,0.156083]
[1738985752644,0.31567276,96723.0,96722.0,0.155083]
[1738985754111,0.31167276,96723.0,96722.0,0.155083]
[1738985755134,0.31167276,96723.0,96722.0,0.156083]
[1738985761921,0.31167276,96723.0,96722.0,0.001]
[1738985762358,0.46675476,96723.0,96722.0,0.001]
[1738985762564,0.31167276,96723.0,96721.0,0.00022428]
[1738985762740,0.15612094,96722.0,96721.0,0.00022428]
[1738985763190,0.45232069,96722.0,96721.0,0.00022428]
[1738985763303,0.46670902,96722.0,96721.0,0.00022428]
[1738985763509,0.59130902,96722.0,96721.0,0.00022428]
[1738985764117,0.59330902,96722.0,96721.0,0.00022428]
[1738985764726,0.60351755,96722.0,96721.0,0.00022428]
[1738985767187,1.12046755,96722.0,96721.0,0.00022428]
[1738985773740,1.11846755,96722.0,96721.0,0.00022428]
[1738985773891,1.12046755,96722.0,96721.0,0.00022428]
[1738985786784,1.04266755,96722.0,96721.0,0.00022428]
[1738985791004,0.99586755,96722.0,96721.0,0.00022428]
[1738985797541,0.98565902,96722.0,96721.0,0.00022428]
[1738985804269,0.83057602,96722.0,96721.0,0.00022428]
[1738985810678,0.83057602,96722.0,96721.0,0.28060928]
[1738985810883,0.83057602,96722.0,96721.0,0.40611293]
[1738985811103,0.81514975,96722.0,96721.0,0.40611293]
[1738985811462,0.83051747,96722.0,96721.0,0.40611293]
[1738985815008,0.82851747,96722.0,96721.0,0.40611293]
[1738985815214,0.83051747,96722.0,96721.0,0.43835525]
[1738985816028,0.82851747,96722.0,96721.0,0.43835525]
[1738985816432,0.82851747,96722.0,96721.0,0.40611293]
[1738985816687,0.82851747,96722.0,96721.0,0.43832824]
[1738985817529,0.82951747,96722.0,96721.0,0.43832824]
[1738985817799,0.82851747,96722.0,96721.0,0.40611293]
[1738985817960,0.82851747,96722.0,96721.0,0.41011293]
[1738985818157,0.82851747,96722.0,96721.0,0.41211293]
[1738985820822,0.82851747,96722.0,96721.0,0.28681293]